fUST/lending_fUST_20260606
["ID","MTS","AMOUNT","RATE_DAILY","PERIOD"]
[424245114,1780701044000,-336.7221737,0.00023144,7]
[424245112,1780701044000,-1000.0,0.0002312,5]
[424245111,1780701044000,-200.25,0.00023114,7]
[424245113,1780701044000,-1000.0,0.0002314,5]
[424245109,1780701044000,-1000.0,0.000231,5]
[424245115,1780701044000,-401.14,0.00023146,7]
[424245110,1780701044000,-177.95,0.00023112,7]
[424245098,1780701044000,-160.0,0.00023,2]
[424245085,1780701044000,-5000.0,0.00022548,2]
[424245095,1780701044000,-825.0,0.00022924,3]
[424245083,1780701044000,-5010.68567873,0.00022548,2]
[424245058,1780701044000,-637.17975627,0.00021918,2]
[424245059,1780701044000,-160.31887843,0.00021918,2]
[424245057,1780701044000,-477.8848172,0.00021918,2]
[424245060,1780701044000,-320.63775687,0.00021918,2]
[424245062,1780701044000,-641.27551374,0.00021918,2]
[424245084,1780701044000,-5000.0,0.00022548,2]
[424245055,1780701044000,-159.29493907,0.00021918,2]
[424245065,1780701044000,-162.96491963,0.00022198,7]
[424245066,1780701044000,-186.67,0.00022248,2]
[424245064,1780701044000,-500.0,0.00022192,2]
[424245061,1780701044000,-480.9566353,0.00021918,2]
[424245067,1780701044000,-6155.03388158,0.00022265,2]
[424245068,1780701044000,-5000.0,0.00022265,2]
[424245070,1780701044000,-5000.0,0.00022265,2]
[424245063,1780701044000,-824.0,0.00022164,2]
[424245081,1780701044000,-216.319214,0.0002254,14]
[424245071,1780701044000,-151.0,0.00022265,2]
[424245073,1780701044000,-796.47469533,0.00022269,2]
[424245077,1780701044000,-720.0,0.00022439,10]
[424245078,1780701044000,-8200.0,0.00022489,2]
[424245074,1780701044000,-446.67455295,0.00022275,2]
[424245076,1780701044000,-535.99148788,0.00022411,2]
[424245075,1780701044000,-193.580565,0.0002232,14]
[424245080,1780701044000,-5000.0,0.00022489,2]
[424245090,1780701044000,-222.617651,0.00022638,14]
[424245091,1780701044000,-240.354682,0.00022658,14]
[424245082,1780701044000,-308.16,0.0002254,3]
[424245069,1780701044000,-5000.0,0.00022265,2]
[424245144,1780701045000,-922.52633463,0.00023347,120]
[424245137,1780701045000,-97230.10075228,0.0002329,120]
[424245138,1780701045000,-401.14,0.00023296,7]
[424245155,1780701045000,-296.16185479,0.00023372,2]
[424245141,1780701045000,-35037.11663158,0.00023314,120]
[424245140,1780701045000,-1000.0,0.000233,5]
[424245146,1780701045000,-168.0,0.00023369,120]
[424245139,1780701045000,-1781.16408117,0.000233,7]
[424245150,1780701045000,-92679.68877298,0.00023372,2]
[424245148,1780701045000,-406601.59142474,0.00023372,2]
[424245145,1780701045000,-162.96491963,0.00023366,7]
[424245151,1780701045000,-300.0,0.00023372,2]
[424245147,1780701045000,-2188.31785982,0.00023372,2]
[424245152,1780701045000,-822.06110727,0.00023372,2]
[424245153,1780701045000,-246.41533293,0.00023372,10]
[424245156,1780701045000,-52484.67233296,0.00023372,2]
[424245154,1780701045000,-331.84289159,0.00023372,2]
[424245135,1780701045000,-756.82328276,0.00023288,2]
[424245149,1780701045000,-795.62776131,0.00023372,2]
[424245131,1780701045000,-155.58209396,0.00023288,2]
[424245177,1780701045000,-204.27921981,0.00023372,2]
[424245133,1780701045000,-378.41164138,0.00023288,2]
[424245158,1780701045000,-1381.80087296,0.00023372,2]
[424245117,1780701045000,-177.96502506,0.00023162,7]
[424245118,1780701045000,-200.2673169,0.00023164,7]
[424245130,1780701045000,-612.85,0.00023288,2]
[424245129,1780701045000,-2145.0,0.00023288,7]
[424245128,1780701045000,-3370.71,0.00023288,2]
[424245119,1780701045000,-1000.0,0.0002318,5]
[424245122,1780701045000,-825.0,0.00023216,3]
[424245120,1780701045000,-401.14,0.00023196,7]
[424245124,1780701045000,-1000.0,0.0002324,5]
[424245123,1780701045000,-1000.0,0.0002322,5]
[424245121,1780701045000,-1000.0,0.000232,5]
[424245125,1780701045000,-401.14,0.00023246,7]
[424245127,1780701045000,-1000.0,0.0002328,5]
[424245126,1780701045000,-1000.0,0.0002326,5]
[424245132,1780701045000,-189.20582069,0.00023288,2]
[424245142,1780701045000,-500.0,0.00023338,30]
[424245143,1780701045000,-401.14,0.00023346,7]
[424245134,1780701045000,-567.61746207,0.00023288,2]
[424245136,1780701045000,-577.0,0.00023288,7]
[424245169,1780701045000,-25432.62185549,0.00023372,10]
[424245175,1780701045000,-2920.0,0.00023372,2]
[424245168,1780701045000,-474.73673497,0.00023372,2]
[424245185,1780701045000,-679.10985556,0.00023372,2]
[424245195,1780701045000,-1300.0,0.00023372,2]
[424245197,1780701045000,-3000.0,0.00023372,7]
[424245196,1780701045000,-960.18501657,0.00023372,7]
[424245184,1780701045000,-158.0,0.00023372,10]
[424245187,1780701045000,-9525.48087348,0.00023372,2]
[424245186,1780701045000,-89790.66062769,0.00023372,7]
[424245188,1780701045000,-181.16574176,0.00023372,2]
[424245182,1780701045000,-262.37285522,0.00023372,2]
[424245157,1780701045000,-646.58116384,0.00023372,2]
[424245190,1780701045000,-247.74802927,0.00023372,10]
[424245194,1780701045000,-3979.79495129,0.00023372,2]
[424245193,1780701045000,-160.0,0.00023372,2]
[424245191,1780701045000,-105601.7519272,0.00023372,2]
[424245198,1780701045000,-600.67349122,0.00023372,2]
[424245202,1780701045000,-2883.07371744,0.00023372,7]
[424245203,1780701045000,-80892.48834592,0.00023372,2]
[424245200,1780701045000,-295.0560232,0.00023372,2]
[424245189,1780701045000,-328.47033806,0.00023372,2]
[424245180,1780701045000,-3194.69540245,0.00023372,2]
[424245192,1780701045000,-1058.75335343,0.00023372,2]
[424245181,1780701045000,-152.52726369,0.00023372,2]
[424245170,1780701045000,-191.91850962,0.00023372,2]
[424245165,1780701045000,-58126.22684711,0.00023372,2]
[424245163,1780701045000,-159.85817069,0.00023372,2]
[424245162,1780701045000,-6390.46835332,0.00023372,2]
[424245164,1780701045000,-168.29586561,0.00023372,7]
[424245159,1780701045000,-158.8830727,0.00023372,2]
[424245167,1780701045000,-589.88942685,0.00023372,2]
[424245160,1780701045000,-712.8475286,0.00023372,2]
[424245166,1780701045000,-515.05281048,0.00023372,2]
[424245161,1780701045000,-750.11480892,0.00023372,2]
[424245171,1780701045000,-1212.74206649,0.00023372,2]
[424245173,1780701045000,-538152.12526885,0.00023372,7]
[424245174,1780701045000,-660.79008071,0.00023372,2]
[424245172,1780701045000,-1417.51920364,0.00023372,2]
[424245201,1780701045000,-10021.23810441,0.00023372,2]
[424245179,1780701045000,-323.39721989,0.00023372,5]
[424245176,1780701045000,-391.15098252,0.00023372,2]
[424245199,1780701045000,-162.18756286,0.00023372,2]
[424245178,1780701045000,-4500.0,0.00023372,2]
[424245183,1780701045000,-3824.09756223,0.00023372,2]
[424245212,1780701046000,-400.0,0.00018809,2]
[424245220,1780701105000,500.0,0.00022347,120]
[424245219,1780701105000,500.0,0.00022347,120]
[424245221,1780701106000,500.0,0.00022347,120]
[424245251,1780701800000,-422.33962008,0.0001,2]
[424245252,1780701813000,-422.33962008,0.0001,2]
[424245253,1780701825000,-2992.72114036,0.0001,2]
[424245254,1780701878000,-2142.96902182,0.0001,2]
[424245255,1780701933000,-369.54716757,9.999e-05,2]
[424245257,1780701949000,-719.82142295,0.0001,2]
[424245256,1780701949000,-12.34077589,9.999e-05,2]
[424245258,1780702002000,-280.17857705,0.0001,2]
[424245260,1780702025000,-151.0,9.7e-05,2]
[424245261,1780702025000,-2899.71936408,0.0001,2]
[424245262,1780702036000,-1057.17528429,0.0001,2]
[424245263,1780702056000,-4143.81754998,0.0001,2]
[424245264,1780702069000,-4143.81754998,0.0001,2]
[424245265,1780702081000,-994.59345053,0.0001,2]
[424245272,1780702149000,-2559.64236497,0.0001,2]
[424245270,1780702149000,-3487.33768681,0.0001,2]
[424245271,1780702149000,-678.41910543,0.0001,2]
[424245273,1780702150000,-1147.01656403,0.0001,2]
[424245274,1780702150000,-5000.0,0.0001,2]
[424245276,1780702150000,-430.08926453,0.00010618,2]
[424245277,1780702150000,-4566.45371996,0.000115,2]
[424245275,1780702150000,-5000.0,0.0001,2]
[424245278,1780702161000,-4900.0,0.00011385,2]
[424245281,1780702172000,-14861.38789395,0.000115,2]
[424245280,1780702172000,-100.0,0.00011385,2]
[424245279,1780702172000,-245.06776482,0.00011271,2]
[424245328,1780702232000,-518.61607577,0.000115,2]
[424245323,1780702232000,-896.515803,0.000115,2]
[424245319,1780702232000,-1716.11444316,0.00011385,2]
[424245321,1780702232000,-14882.17268023,0.000115,2]
[424245391,1780702247000,-363.632055,0.000115,2]
[424245388,1780702247000,-3284.2641615,0.000115,2]
[424245389,1780702247000,-639.34187099,0.000115,2]
[424245386,1780702247000,-518.4115985,0.000115,2]
[424245382,1780702247000,-5400.40103056,0.000115,2]
[424245385,1780702247000,-1038.70338955,0.000115,2]
[424245384,1780702247000,-4017.23253637,0.000115,2]
[424245383,1780702247000,-1285.10008273,0.000115,2]
[424245393,1780702247000,-491.46319392,0.00012,2]
[424245387,1780702247000,-6658.15151329,0.000115,2]
[424245390,1780702247000,-581.59161548,0.000115,2]
[424245392,1780702247000,-1171.07844513,0.000115,2]
[424245394,1780702247000,-126.68389499,0.00012,2]
[424245395,1780702247000,-315.90118252,0.000121,5]
[424245405,1780702247000,-158.84421417,0.00017677,2]
[424245401,1780702247000,-186.33186907,0.00017513,2]
[424245402,1780702247000,-233.99231921,0.00017542,2]
[424245400,1780702247000,-457.56227731,0.00015817,2]
[424245404,1780702247000,-187.5800725,0.00017542,2]
[424245399,1780702247000,-160.58481156,0.00015817,2]
[424245397,1780702247000,-250.0,0.00013213,2]
[424245396,1780702247000,-395.72311536,0.000121,5]
[424245398,1780702247000,-618.14708887,0.00013908,2]
[424245403,1780702247000,-235.69314145,0.00017542,2]
[424245422,1780702248000,-191.01125943,0.00018027,2]
[424245421,1780702248000,-409.01241194,0.00018027,2]
[424245418,1780702248000,-185.0,0.00017927,2]
[424245427,1780702248000,-618.14708887,0.00019634,2]
[424245429,1780702248000,-208.01545019,0.000215,2]
[424245426,1780702248000,-768.06331103,0.00018869,2]
[424245437,1780702248000,-186.67,0.00022939,2]
[424245436,1780702248000,-510.94588633,0.00022905,2]
[424245433,1780702248000,-674.907505,0.00021918,2]
[424245435,1780702248000,-433.0,0.00022192,7]
[424245415,1780702248000,-412.57036609,0.00017893,2]
[424245430,1780702248000,-618.14708887,0.00021542,2]
[424245431,1780702248000,-224.96916833,0.00021918,2]
[424245428,1780702248000,-185.0,0.00020927,2]
[424245423,1780702248000,-317.68842834,0.00018027,2]
[424245434,1780702248000,-433.0,0.00022,2]
[424245424,1780702248000,-317.04002102,0.00018027,2]
[424245425,1780702248000,-448.77921669,0.00018027,2]
[424245416,1780702248000,-162.58047707,0.00017893,2]
[424245419,1780702248000,-398.31629762,0.00018027,2]
[424245420,1780702248000,-202.13583484,0.00018027,2]
[424245413,1780702248000,-375.16014501,0.00017893,2]
[424245414,1780702248000,-339.1696461,0.00017893,2]
[424245410,1780702248000,-196.66580697,0.00017863,2]
[424245407,1780702248000,-372.66373813,0.00017863,2]
[424245411,1780702248000,-467.98463842,0.00017892,2]
[424245409,1780702248000,-357.11024801,0.00017863,2]
[424245408,1780702248000,-173.79975554,0.00017863,2]
[424245406,1780702248000,-618.14708887,0.00017725,2]
[424245412,1780702248000,-158.27901689,0.00017892,2]
[424245417,1780702248000,-444.0,0.00017927,2]
[424245432,1780702248000,-449.93833666,0.00021918,2]
[424245467,1780702248000,-500.0,0.00023341,2]
[424245438,1780702248000,-160.0,0.00023,2]
[424245466,1780702248000,-500.0,0.00023341,2]
[424245468,1780702248000,-598.32164104,0.00023341,2]
[424245469,1780702248000,-4058.47446884,0.00023342,2]
[424245464,1780702248000,-500.0,0.00023323,9]
[424245463,1780702248000,-135.80323106,0.0002332,2]
[424245470,1780702248000,-30523.5169904,0.00023342,2]
[424245465,1780702248000,-162.40065907,0.00023341,2]
[424245461,1780702248000,-592.83322806,0.00023308,2]
[424245462,1780702248000,-664.19676894,0.0002332,2]
[424245460,1780702248000,-207.16677194,0.00023308,2]
[424245454,1780702248000,-300.0,0.00023272,4]
[424245453,1780702248000,-800.0,0.00023256,2]
[424245455,1780702248000,-157.67151724,0.00023288,2]
[424245456,1780702248000,-315.34303448,0.00023288,2]
[424245459,1780702248000,-800.0,0.00023301,2]
[424245450,1780702248000,-173.52244331,0.00023242,2]
[424245448,1780702248000,-345.74520144,0.00023229,2]
[424245441,1780702248000,-800.0,0.00023055,2]
[424245440,1780702248000,-173.52244332,0.00023039,2]
[424245445,1780702248000,-800.0,0.00023152,2]
[424245442,1780702248000,-800.0,0.00023123,2]
[424245457,1780702248000,-473.01455172,0.00023288,2]
[424245443,1780702248000,-800.0,0.00023149,2]
[424245444,1780702248000,-800.0,0.00023152,2]
[424245446,1780702248000,-800.0,0.00023157,2]
[424245449,1780702248000,-454.25479856,0.00023229,2]
[424245458,1780702248000,-150.0,0.000233,5]
[424245451,1780702248000,-4519.17688275,0.00023242,2]
[424245452,1780702248000,-800.0,0.00023242,2]
[424245447,1780702248000,-800.0,0.00023162,2]
[424245439,1780702248000,-433.0,0.00023014,7]
[424245472,1780702286000,500.0,0.00011499,2]
[424245471,1780702286000,500.0,0.00011499,2]
[424245473,1780702287000,500.0,0.00011499,2]
[424245474,1780702309000,-500.0,0.00011499,2]
[424245476,1780702423000,-500.0,0.00011499,2]
[424245478,1780702437000,-500.0,0.000115,2]
[424245482,1780702897000,100000.0,0.00023288,120]
[424245483,1780702938000,100000.0,0.00023288,120]
[424245484,1780702968000,100000.0,0.00023288,120]
[424245485,1780703157000,-161.98214229,0.00011045,2]
[424245487,1780703215000,-601.37411103,0.00011157,2]
[424245486,1780703215000,-4838.01785771,0.00011045,2]
[424245488,1780703229000,-1955.99986586,0.00011382,2]
[424245489,1780703250000,-229.24526805,0.00011268,2]
[424245498,1780703252000,-789.8360237,0.00012814,2]
[424245497,1780703252000,-172.52925018,0.00012045,2]
[424245495,1780703252000,-418.0,0.00011498,2]
[424245496,1780703252000,-314.06576937,0.00011954,7]
[424245490,1780703252000,-2734.82418667,0.00011268,2]
[424245492,1780703252000,-300.0,0.00011497,2]
[424245493,1780703252000,-300.0,0.00011497,2]
[424245491,1780703252000,-3044.00013414,0.00011382,2]
[424245494,1780703252000,-300.0,0.00011497,2]
[424245503,1780703252000,-500.0,0.00015238,2]
[424245499,1780703252000,-178.799675,0.00014032,2]
[424245501,1780703252000,-178.799675,0.00015017,2]
[424245502,1780703252000,-500.0,0.00015238,2]
[424245505,1780703252000,-500.0,0.00015238,2]
[424245504,1780703252000,-500.0,0.00015238,2]
[424245506,1780703252000,-500.0,0.00015238,2]
[424245507,1780703252000,-500.0,0.00015238,2]
[424245508,1780703252000,-500.0,0.00015238,2]
[424245509,1780703252000,-500.0,0.00015238,2]
[424245510,1780703252000,-500.0,0.00015238,2]
[424245511,1780703252000,-418.02483154,0.00015238,2]
[424245500,1780703252000,-1000.0,0.00014062,2]
[424245557,1780703432000,-466.47016831,0.00015239,2]
[424245559,1780703432000,-500.0,0.00015239,2]
[424245552,1780703432000,-329.51878425,0.00015239,2]
[424245547,1780703432000,-5000.0,0.00015085,2]
[424245550,1780703432000,-500.0,0.00015239,2]
[424245558,1780703432000,-500.0,0.00015239,2]
[424245554,1780703432000,-170.48121575,0.00015239,2]
[424245555,1780703432000,-500.0,0.00015239,2]
[424245549,1780703432000,-500.0,0.00015238,2]
[424245560,1780703432000,-372.09882284,0.00015239,2]
[424245562,1780703432000,-500.0,0.00015239,2]
[424245561,1780703432000,-127.90117716,0.00015239,2]
[424245563,1780703432000,-500.0,0.00015239,2]
[424245564,1780703432000,-1220.0712836,0.0001524,2]
[424245565,1780703432000,-25.47169645,0.0001524,2]
[424245567,1780703432000,-12878.41695144,0.0001524,2]
[424245566,1780703432000,-876.04006851,0.0001524,2]
[424245573,1780703432000,-4569.94332153,0.000174,2]
[424245568,1780703432000,-9903.90423633,0.0001524,2]
[424245570,1780703432000,-178.799675,0.00016001,2]
[424245569,1780703432000,-21.2133314,0.0001524,2]
[424245572,1780703432000,-17919.33728165,0.000174,2]
[424245571,1780703432000,-178.799675,0.00016986,2]
[424245592,1780703441000,-600.0,0.00017746,2]
[424245595,1780703441000,-185.0,0.00018711,2]
[424245597,1780703441000,-9375.2807853,0.00018802,2]
[424245599,1780703441000,-422.63830972,0.00019,2]
[424245594,1780703441000,-878.8225943,0.00018213,2]
[424245582,1780703441000,-2252.16201003,0.00017226,2]
[424245590,1780703441000,-235.69314145,0.00017511,2]
[424245586,1780703441000,-26325.76725444,0.000174,2]
[424245584,1780703441000,-3836.48665128,0.000174,2]
[424245581,1780703441000,-2747.83798997,0.00017226,2]
[424245601,1780703441000,-768.06331103,0.00019032,2]
[424245593,1780703441000,-158.84421417,0.00017861,2]
[424245602,1780703441000,-160.0,0.00019032,2]
[424245588,1780703441000,-26325.76725444,0.000174,2]
[424245604,1780703441000,-160.0,0.00019035,2]
[424245625,1780703441000,-26325.76725446,0.00022,30]
[424245612,1780703441000,-720.0,0.00019521,2]
[424245623,1780703441000,-185.0,0.00021711,2]
[424245605,1780703441000,-150.92394733,0.00019143,2]
[424245627,1780703441000,-21501.34672299,0.00022,30]
[424245610,1780703441000,-422.63830972,0.000194,2]
[424245621,1780703441000,-864.0,0.00021473,10]
[424245608,1780703441000,-422.63830972,0.000192,2]
[424245618,1780703441000,-301.96303222,0.00020039,2]
[424245606,1780703441000,-362.873,0.00019143,2]
[424245616,1780703441000,-422.63830972,0.000198,2]
[424245614,1780703441000,-422.63830972,0.000196,2]
[424245619,1780703441000,-298.51677348,0.00021093,2]
[424245712,1780703443000,-10539.95635395,0.00022,30]
[424245711,1780703443000,-4220.04364604,0.00022,30]
[424245710,1780703443000,-604.37688541,0.00022,30]
[424245713,1780703444000,-644.0,0.00022,30]
[424245729,1780703450000,-9121.35,0.00022,30]
[424245727,1780703450000,-2222.232,0.00022,30]
[424245730,1780703450000,-1627.65328284,0.00022,30]
[424245728,1780703450000,-17.99801581,0.00022,30]
[424245734,1780703498000,181.96,0.00015,30]
[424245733,1780703498000,181.94,0.00015,30]
[424245732,1780703498000,181.94,0.00015,30]
[424245743,1780703987000,200.0,0.00023288,120]
[424245744,1780704059000,813.0,0.00023287,120]
[424245748,1780704355000,-357.26982633,0.00016712,2]
[424245750,1780704441000,-495.61172521,0.00016545,2]
[424245850,1780704631000,-163.05916191,0.0001893,2]
[424245838,1780704631000,-186.35598735,0.000175,2]
[424245836,1780704631000,-358.76293364,0.000174,2]
[424245832,1780704631000,-160.0,0.00017037,2]
[424245834,1780704631000,-358.76293364,0.000174,2]
[424245842,1780704631000,-314.25752193,0.00017864,2]
[424245844,1780704631000,-3865.1130733,0.00018043,2]
[424245847,1780704631000,-444.0,0.00018893,2]
[424245830,1780704631000,-5000.0,0.0001638,2]
[424245840,1780704631000,-157.12876096,0.00017514,2]
[424245852,1780704631000,-500.0,0.00018999,2]
[424245845,1780704631000,-185.0,0.00018893,2]
[424245866,1780704631000,-441.66490898,0.00018999,2]
[424245855,1780704631000,-290.60758977,0.00018999,2]
[424245865,1780704631000,-500.0,0.00018999,2]
[424245869,1780704631000,-593.29234203,0.00018999,2]
[424245871,1780704631000,-303.82013775,0.00018999,2]
[424245858,1780704631000,-209.39241023,0.00018999,2]
[424245870,1780704631000,-500.0,0.00018999,2]
[424245867,1780704631000,-58.33509102,0.00018999,2]
[424245868,1780704631000,-500.0,0.00018999,2]
[424245861,1780704631000,-229.14701683,0.00018999,2]
[424245860,1780704631000,-500.0,0.00018999,2]
[424245862,1780704631000,-296.24566396,0.00018999,2]
[424245863,1780704631000,-500.0,0.00018999,2]
[424245864,1780704631000,-500.0,0.00018999,2]
[424245872,1780704631000,-500.0,0.00018999,2]
[424245873,1780704631000,-202.69265703,0.00018999,2]
[424245875,1780704632000,-3952.75973105,0.00019,2]
[424245876,1780704632000,-395.20016942,0.00019,2]
[424245874,1780704632000,-1030.94610192,0.00019,2]
[424245963,1780704641000,-3000.0,0.000212,2]
[424245946,1780704641000,-3000.0,0.0002111,2]
[424245955,1780704641000,-3000.0,0.0002115,2]
[424245948,1780704641000,-3000.0,0.0002112,2]
[424245950,1780704641000,-3000.0,0.0002113,2]
[424245944,1780704641000,-3000.0,0.000211,2]
[424245953,1780704641000,-265.93240696,0.00021146,2]
[424245951,1780704641000,-3000.0,0.0002114,2]
[424245958,1780704641000,-3000.0,0.0002117,2]
[424245957,1780704641000,-3000.0,0.0002116,2]
[424245962,1780704641000,-3000.0,0.0002119,2]
[424245979,1780704641000,-4116.759433,0.0002128,2]
[424245960,1780704641000,-3000.0,0.0002118,2]
[424245967,1780704641000,-3000.0,0.0002122,2]
[424245969,1780704641000,-3000.0,0.0002123,2]
[424245973,1780704641000,-3000.0,0.0002125,2]
[424245971,1780704641000,-3000.0,0.0002124,2]
[424245980,1780704641000,-1000.0,0.00021711,2]
[424245941,1780704641000,-316.3344491,0.00021093,2]
[424245977,1780704641000,-3000.0,0.0002127,2]
[424245975,1780704641000,-3000.0,0.0002126,2]
[424245982,1780704641000,-1000.0,0.00021711,2]
[424245986,1780704641000,-1000.0,0.00021711,2]
[424245990,1780704641000,-1000.0,0.00021711,2]
[424245965,1780704641000,-3000.0,0.0002121,2]
[424245937,1780704641000,-3000.0,0.0002109,2]
[424245921,1780704641000,-3000.0,0.00021,2]
[424245939,1780704641000,-175.74136061,0.00021093,2]
[424245984,1780704641000,-1000.0,0.00021711,2]
[424245893,1780704641000,-2099.02828019,0.00019,2]
[424245904,1780704641000,-260.97703785,0.00019359,2]
[424245895,1780704641000,-21748.29585799,0.00019,2]
[424245900,1780704641000,-339.327,0.00019232,2]
[424245899,1780704641000,-768.06331103,0.0001903,2]
[424245906,1780704641000,-1753.8918521,0.00019535,2]
[424245908,1780704641000,-1093.4336469,0.00019722,2]
[424245897,1780704641000,-96779.46653934,0.00019,2]
[424245909,1780704641000,-163.05916188,0.00020402,2]
[424245902,1780704641000,-186.670001,0.00019303,2]
[424245942,1780704641000,-464.96543878,0.00021093,2]
[424245911,1780704641000,-300.0,0.00020411,5]
[424245917,1780704641000,-248.90434132,0.00020947,2]
[424245915,1780704641000,-300.0,0.00020822,6]
[424245919,1780704641000,-822.77,0.0002099,3]
[424245928,1780704641000,-3000.0,0.0002104,2]
[424245930,1780704641000,-3000.0,0.0002105,2]
[424245932,1780704641000,-3000.0,0.0002106,2]
[424245934,1780704641000,-3000.0,0.0002107,2]
[424245923,1780704641000,-3000.0,0.0002101,2]
[424245935,1780704641000,-3000.0,0.0002108,2]
[424245926,1780704641000,-3000.0,0.0002103,2]
[424245924,1780704641000,-3000.0,0.0002102,2]
[424245913,1780704641000,-271.6099529,0.00020605,2]
[424245988,1780704641000,-1000.0,0.00021711,2]
[424246030,1780704641000,-160.31887843,0.00021918,2]
[424245993,1780704641000,-1000.0,0.00021711,2]
[424246051,1780704641000,-159.73370344,0.000222,30]
[424246058,1780704641000,-801.59439217,0.0002227,2]
[424246061,1780704641000,-400.0,0.000224,2]
[424246055,1780704641000,-313.25962968,0.00022203,2]
[424246062,1780704641000,-907.98115268,0.00022793,2]
[424246065,1780704641000,-825.0,0.00022887,3]
[424246067,1780704641000,-300.0,0.00022887,3]
[424246075,1780704641000,-229.83,0.00023075,7]
[424246073,1780704641000,-291.12588938,0.00023074,7]
[424246079,1780704641000,-9812.39411326,0.00023095,2]
[424246081,1780704641000,-5000.0,0.00023095,2]
[424246057,1780704641000,-756.65096057,0.00022268,2]
[424246077,1780704641000,-1559.995238,0.0002308,5]
[424246069,1780704641000,-596.10353405,0.00022905,2]
[424246083,1780704641000,-5000.0,0.00023095,2]
[424246086,1780704641000,-5000.0,0.00023095,2]
[424246085,1780704641000,-5000.0,0.00023095,2]
[424246088,1780704641000,-1000.0,0.000231,5]
[424245991,1780704641000,-1000.0,0.00021711,2]
[424246090,1780704641000,-1000.0,0.0002312,5]
[424246092,1780704641000,-229.83,0.00023125,7]
[424246095,1780704641000,-1000.0,0.0002314,5]
[424246099,1780704641000,-1000.0,0.0002316,5]
[424246097,1780704641000,-825.0,0.00023151,3]
[424246071,1780704641000,-160.0,0.00023,2]
[424246053,1780704641000,-159.73370344,0.000222,30]
[424246101,1780704641000,-229.83,0.00023175,7]
[424246047,1780704641000,-302.66038423,0.00021918,2]
[424246049,1780704641000,-453.99057634,0.00021918,2]
[424246006,1780704641000,-1000.0,0.00021711,2]
[424245995,1780704641000,-1000.0,0.00021711,2]
[424246008,1780704641000,-1000.0,0.00021711,2]
[424246010,1780704641000,-1000.0,0.00021711,2]
[424245999,1780704641000,-1000.0,0.00021711,2]
[424246002,1780704641000,-1000.0,0.00021711,2]
[424246004,1780704641000,-1000.0,0.00021711,2]
[424246001,1780704641000,-1000.0,0.00021711,2]
[424246021,1780704641000,-160.0,0.000218,30]
[424246033,1780704641000,-605.32076845,0.00021918,2]
[424246023,1780704641000,-825.0,0.00021815,2]
[424245997,1780704641000,-1000.0,0.00021711,2]
[424246028,1780704641000,-444.0,0.00021893,2]
[424246017,1780704641000,-491.65099011,0.00021711,2]
[424246042,1780704641000,-320.63775687,0.00021918,2]
[424246045,1780704641000,-641.27551374,0.00021918,2]
[424246027,1780704641000,-185.0,0.00021893,2]
[424246035,1780704641000,-313.65856675,0.00021918,2]
[424246039,1780704641000,-470.48785013,0.00021918,2]
[424246025,1780704641000,-163.05916188,0.00021874,2]
[424246031,1780704641000,-151.33019211,0.00021918,2]
[424246037,1780704641000,-156.82928338,0.00021918,2]
[424246019,1780704641000,-169.35745743,0.00021727,30]
[424246043,1780704641000,-480.9566353,0.00021918,2]
[424246150,1780704642000,-756.6,0.00023344,2]
[424246164,1780704642000,-500.0,0.00023344,11]
[424246154,1780704642000,-500.0,0.00023344,6]
[424246160,1780704642000,-500.0,0.00023344,9]
[424246145,1780704642000,-1000.0,0.000233,5]
[424246147,1780704642000,-202.085792,0.000233,2]
[424246158,1780704642000,-500.0,0.00023344,8]
[424246148,1780704642000,-229.83,0.00023325,7]
[424246143,1780704642000,-1781.16408117,0.000233,7]